Workbook

Sheet паспорт
A1: ПАТ "УКРТРАНСГАЗ" | G1: ПАСПОРТ ФІЗИКО-ХІМІЧНИХ ПОКАЗНИКІВ ПРИРОДНОГО ГАЗУ № 27
A2: Філія "УМГ "КИЇВТРАНСГАЗ" | G2: переданого Боярським ЛВУМГ та прийнятого ПАТ "Київоблгаз", ПАТ "Київгаз"
A3: Боярське ЛВУМГ | G3: Маршрут №27
A4: Вимірювальна хіміко-аналітична лабораторія
A5: Свідоцтво № 70А-43-14 чинно до 23.07.2019 р. | K5: по газопроводу "ТУЛА - ШОСТКА - КИЇВ" | V5: за період з | X5: 2017-03-01 | Z5: по | AA5: 2017-03-31
A7: Число місяця | B7: Компонентний склад, % мол. | N7: Фізико-хімічні показники газу обчислені на основі компонентного складу, 101,325 кПа | X7: Температура точки роси за вологою (Р = 3.92 МПа), ºС | Y7: Температура точки роси за вуглеводнями, ºС | Z7: Вміст сірководню, г/м3 | AA7: Вміст меркаптанової сірки, г/м3 | AB7: Вміст механічних домішок, г/м3
N8: Густина абсолютна, кг/м3,при 20 ºС, | O8: Температура вимірювання/згоряння при 20/25°С
B9: метан, С1 | C9: етан, С2 | D9: пропан, С3 | E9: ізо-бутан, і-С4 | F9: н-бутан, н-С4 | G9: нео-пентан, нео-С5 | H9: ізо-пентан, і-С5 | I9: н-пентан, н-С5 | J9: гексани та вищі, С6+ | K9: кисень, О2 | L9: азот, N2 | M9: діоксид вуглецю, CО2 | O9: Теплота згоряння нижча | R9: Теплота згоряння вища | U9: Число Воббе вище
O10: ккал/м3 | P10: МДж/м3 | Q10: кВт⋅год/м3 | R10: ккал/м3 | S10: МДж/м3 | T10: кВт⋅год/м3 | U10: ккал/м3 | V10: МДж/м3 | W10: кВт⋅год/м3
A11: 1 | O11: =P11*238.8459 -> 8185.248993 | P11: 34.27 | Q11: =P11/3.6 -> 9.519444444 | R11: =S11*238.8459 -> 9066.590364 | S11: 37.96 | T11: =S11/3.6 -> 10.54444444 | AC11: =SUM(B11:M11)+$K$42+$N$42 -> 0
A12: 2 | O12: =P12*238.8459 -> 8185.248993 | P12: 34.27 | Q12: 9.519444444 | R12: =S12*238.8459 -> 9066.590364 | S12: 37.96 | T12: 10.54444444 | AC12: 0
A13: 3 | O13: 8185.248993 | P13: 34.27 | Q13: 9.519444444 | R13: 9066.590364 | S13: 37.96 | T13: 10.54444444 | AC13: 0 | AD13: =IF(AC13=100,"ОК"," ") -> 
A14: 4 | O14: 8185.248993 | P14: 34.27 | Q14: 9.519444444 | R14: 9066.590364 | S14: 37.96 | T14: 10.54444444 | AC14: 0 | AD14: =IF(AC14=100,"ОК"," ") -> 
A15: 5 | O15: 8185.248993 | P15: 34.27 | Q15: 9.519444444 | R15: 9066.590364 | S15: 37.96 | T15: 10.54444444 | AC15: 0
A16: 6 | B16: 89.4395 | C16: 5.0721 | D16: 1.0536 | E16: 0.1097 | F16: 0.1643 | G16: 0.0036 | H16: 0.0432 | I16: 0.0362 | J16: 0.0782 | K16: 0.0064 | L16: 1.5311 | M16: 2.4621 | N16: 0.7558 | O16: 8209.133583 | P16: 34.37 | Q16: 9.547222222 | R16: 9092.863413 | S16: 38.07 | T16: 10.575 | U16: =V16*238.8459 -> 11478.93395 | V16: 48.06 | W16: =V16/3.6 -> 13.35 | X16: -12.8 | Y16: -11.9 | AC16: 100 | AD16: ОК
A17: 7 | O17: 8209.133583 | P17: 34.37 | Q17: 9.547222222 | R17: 9092.863413 | S17: 38.07 | T17: 10.575 | AC17: 0
A18: 8 | O18: 8209.133583 | P18: 34.37 | Q18: 9.547222222 | R18: 9092.863413 | S18: 38.07 | T18: 10.575 | AC18: 0
A19: 9 | O19: 8209.133583 | P19: 34.37 | Q19: 9.547222222 | R19: 9092.863413 | S19: 38.07 | T19: 10.575 | AC19: 0
A20: 10 | O20: 8209.133583 | P20: 34.37 | Q20: 9.547222222 | R20: 9092.863413 | S20: 38.07 | T20: 10.575 | AC20: 0
A21: 11 | O21: 8209.133583 | P21: 34.37 | Q21: 9.547222222 | R21: 9092.863413 | S21: 38.07 | T21: 10.575 | AC21: 0
A22: 12 | O22: 8209.133583 | P22: 34.37 | Q22: 9.547222222 | R22: 9092.863413 | S22: 38.07 | T22: 10.575 | AC22: 0
A23: 13 | B23: 89.3423 | C23: 5.1343 | D23: 1.053 | E23: 0.1103 | F23: 0.168 | G23: 0.0036 | H23: 0.0438 | I23: 0.0358 | J23: 0.0627 | K23: 0.0114 | L23: 1.6365 | M23: 2.3983 | N23: 0.7556 | O23: 8204.356665 | P23: 34.35 | Q23: 9.541666667 | R23: 9088.086495 | S23: 38.05 | T23: 10.56944444 | U23: =V23*238.8459 -> 11474.15704 | V23: 48.04 | W23: =V23/3.6 -> 13.34444444 | AC23: 100 | AD23: ОК
A24: 14 | O24: 8204.356665 | P24: 34.35 | Q24: 9.541666667 | R24: 9088.086495 | S24: 38.05 | T24: 10.56944444 | AC24: 0
A25: 15 | O25: 8204.356665 | P25: 34.35 | Q25: 9.541666667 | R25: 9088.086495 | S25: 38.05 | T25: 10.56944444 | AC25: 0
A26: 16 | O26: 8204.356665 | P26: 34.35 | Q26: 9.541666667 | R26: 9088.086495 | S26: 38.05 | T26: 10.56944444 | AC26: 0
A27: 17 | O27: 8204.356665 | P27: 34.35 | Q27: 9.541666667 | R27: 9088.086495 | S27: 38.05 | T27: 10.56944444 | AC27: 0
A28: 18 | O28: 8204.356665 | P28: 34.35 | Q28: 9.541666667 | R28: 9088.086495 | S28: 38.05 | T28: 10.56944444 | AC28: 0
A29: 19 | O29: 8204.356665 | P29: 34.35 | Q29: 9.541666667 | R29: 9088.086495 | S29: 38.05 | T29: 10.56944444 | AC29: 0
A30: 20 | B30: 89.301 | C30: 5.102 | D30: 1.0725 | E30: 0.1141 | F30: 0.1763 | G30: 0.0038 | H30: 0.0476 | I30: 0.0399 | J30: 0.0802 | K30: 0.0091 | L30: 1.6572 | M30: 2.3962 | N30: 0.7566 | O30: 8213.910501 | P30: 34.39 | Q30: 9.552777778 | R30: 9097.640331 | S30: 38.09 | T30: 10.58055556 | U30: =V30*238.8459 -> 11478.93395 | V30: 48.06 | W30: =V30/3.6 -> 13.35 | X30: -12.8 | Y30: -12.9 | AC30: 99.9999 | AD30: =IF(AC30=100,"ОК"," ") -> 
A31: 21 | O31: =P31*238.8459 -> 8213.910501 | P31: 34.39 | Q31: =P31/3.6 -> 9.552777778 | R31: =S31*238.8459 -> 9097.640331 | S31: 38.09 | T31: =S31/3.6 -> 10.58055556 | AC31: 0
A32: 22 | O32: 8213.910501 | P32: 34.39 | Q32: 9.552777778 | R32: 9097.640331 | S32: 38.09 | T32: 10.58055556 | AC32: 0
A33: 23 | O33: 8213.910501 | P33: 34.39 | Q33: =P33/3.6 -> 9.552777778 | R33: 9097.640331 | S33: 38.09 | T33: =S33/3.6 -> 10.58055556 | AC33: 0 | AD33: =IF(AC33=100,"ОК"," ") -> 
A34: 24 | O34: 8213.910501 | P34: 34.39 | Q34: 9.552777778 | R34: 9097.640331 | S34: 38.09 | T34: 10.58055556 | AC34: 0
A35: 25 | O35: 8213.910501 | P35: 34.39 | Q35: 9.552777778 | R35: 9097.640331 | S35: 38.09 | T35: 10.58055556 | AC35: 0
A36: 26 | O36: 8213.910501 | P36: 34.39 | Q36: 9.552777778 | R36: 9097.640331 | S36: 38.09 | T36: =S36/3.6 -> 10.58055556 | AC36: 0
A37: 27 | B37: 89.4242 | C37: 5.0441 | D37: 1.048 | E37: 0.1146 | F37: 0.1775 | G37: 0.0038 | H37: 0.0485 | I37: 0.0402 | J37: 0.0828 | K37: 0.0159 | L37: 1.7015 | M37: 2.299 | N37: 0.7553 | O37: 8211.522042 | P37: 34.38 | Q37: 9.55 | R37: 9095.251872 | S37: 38.08 | T37: 10.57777778 | U37: =V37*238.8459 -> 11486.09933 | V37: 48.09 | W37: =V37/3.6 -> 13.35833333 | Z37: 0.006 | AA37: 0.02 | AB37: відсут | AC37: 100.0001
A38: 28 | O38: 8211.522042 | P38: 34.38 | Q38: 9.55 | R38: 9095.251872 | S38: 38.08 | T38: 10.57777778 | AC38: 0
A39: 29 | O39: 8211.522042 | P39: 34.38 | Q39: 9.55 | R39: 9095.251872 | S39: 38.08 | T39: 10.57777778 | AC39: 0
A40: 30 | O40: 8211.522042 | P40: 34.38 | Q40: 9.55 | R40: 9095.251872 | S40: 38.08 | T40: 10.57777778 | AC40: 0
A41: 31 | O41: 8211.522042 | P41: 34.38 | Q41: 9.55 | R41: 9095.251872 | S41: 38.08 | T41: 10.57777778 | AC41: 0
A42: Рівень одоризації відповідає чинним нормативним документам | O42: =SUMPRODUCT(O11:O41,' розрахунок'!M7:M37)/' розрахунок'!M38 -> 8205.237358 | P42: =SUMPRODUCT(P11:P41,' розрахунок'!M7:M37)/' розрахунок'!M38 -> 34.35368728 | Q42: =SUMPRODUCT(Q11:Q41,' розрахунок'!M7:M37)/' розрахунок'!M38 -> 9.542690912 | R42: =SUMPRODUCT(R11:R41,' розрахунок'!M7:M37)/' розрахунок'!M38 -> 9088.537095 | S42: =SUMPRODUCT(S11:S41,' розрахунок'!M7:M37)/' розрахунок'!M38 -> 38.05188657 | T42: =SUMPRODUCT(T11:T41,' розрахунок'!M7:M37)/' розрахунок'!M38 -> 10.56996849
H43: Середньозважене значення теплоти згоряння:
B46: Головний інженер Боярського ЛВУМГ Табак С.М. 03.04.2017 р.
C47: Підрозділу підприємства, якому підпорядкована лабораторія | O47: прізвище | R47: підпис | V47: дата
B48: Завідувач вимірювальної хіміко-аналітичної лабораторії Клименко І.А. 03.04.2017 р.
C49: Лабораторія, де здійснювалось вимірювання газу | O49: прізвище | R49: підпис | V49: дата
B50: Начальник служби газовимірювань та метрології Прима Ю.І. 03.04.2017 р.
C51: Підрозділу, відповідального за облік газу за маршрутом | O51: прізвище | R51: підпис | V51: дата

Sheet розрахунок (hidden)
A2: Додаток до Паспорту фізико-хімічних показників природного газу по маршруту № 25
A4: Число місяця | B4: Теплота згоряння вища, МДж/м3 | C4: Київська область | M4: Загальний обсяг газу, м3
C5: Обсяг газу переданого за добу, м3
C6: ГРС ТЕЦ-6 | D6: ГРС Требухів | E6: ГРС Дударків | F6: ГРС Плоске | G6: ГРС Русанів | H6: ГРС Бориспіль | I6: ГРС - 4 (місто) | J6: ГРС - 4 (ТЕЦ) | K6: АГНКС №3 м.Київ | L6: АГНКС Бровари
A7: 1 | B7: 37.96 | C7: 2546.813 | D7: 62.951 | E7: 9.395 | F7: 23.808 | G7: 5.694 | H7: 115.086 | I7: 339.425 | J7: 878.231 | K7: 3.145 | L7: 1.778 | M7: =SUM(C7:L7) -> 3986.326
A8: 2 | B8: 37.96 | C8: 2363.065 | D8: 65.047 | E8: 9.661 | F8: 24.201 | G8: 5.703 | H8: 117.053 | I8: 348.25 | J8: 903.339 | K8: 3.323 | L8: 1.798 | M8: 3841.44
A9: 3 | B9: 37.96 | C9: 1878.553 | D9: 62.538 | E9: 9.314 | F9: 23.657 | G9: 5.592 | H9: 115.131 | I9: 316.264 | J9: 855.326 | K9: 3.227 | L9: 1.951 | M9: 3271.553
A10: 4 | B10: 37.96 | C10: 1893.014 | D10: 61.438 | E10: 9.244 | F10: 22.971 | G10: 5.593 | H10: 111.211 | I10: 309.581 | J10: 855.387 | K10: 2.343 | L10: 1.001 | M10: 3271.783
A11: 5 | B11: 37.96 | C11: 1917.827 | D11: 60.48 | E11: 8.849 | F11: 22.344 | G11: 5.535 | H11: 110.138 | I11: 300.861 | J11: 845.194 | K11: 2.217 | L11: 0.839 | M11: 3274.284
A12: 6 | B12: 38.07 | C12: 1843.333 | D12: 56.076 | E12: 8.408 | F12: 22.025 | G12: 5.248 | H12: 107.797 | I12: 293.144 | J12: 845.832 | K12: 3.604 | L12: 1.648 | M12: 3187.115
A13: 7 | B13: 38.07 | C13: 1750.852 | D13: 54.71 | E13: 8.11 | F13: 21.721 | G13: 5.097 | H13: 109.296 | I13: 279.71 | J13: 676.71 | K13: 3.083 | L13: 1.664 | M13: 2910.953
A14: 8 | B14: 38.07 | C14: 1754.583 | D14: 53.252 | E14: 7.976 | F14: 20.406 | G14: 4.971 | H14: 109.768 | I14: 293.813 | J14: 590.951 | K14: 2.228 | L14: 1.04 | M14: 2838.988
A15: 9 | B15: 38.07 | C15: 1800.247 | D15: 55.972 | E15: 8.286 | F15: 20.506 | G15: 4.915 | H15: 110.736 | I15: 317.228 | J15: 604.439 | K15: 3.519 | L15: 2.069 | M15: 2927.917
A16: 10 | B16: 38.07 | C16: 1781.546 | D16: 54.04 | E16: 8.007 | F16: 19.777 | G16: 4.802 | H16: 103.532 | I16: 328.014 | J16: 522.733 | K16: 3.007 | L16: 2.019 | M16: 2827.477
A17: 11 | B17: 38.07 | C17: 1776 | D17: 56.616 | E17: 8.414 | F17: 20.603 | G17: 5.067 | H17: 103.367 | I17: 328.588 | J17: 498.254 | K17: 2.205 | L17: 1.208 | M17: 2800.322
A18: 12 | B18: 38.07 | C18: 1820.268 | D18: 60.02 | E18: 8.829 | F18: 21.32 | G18: 5.361 | H18: 107.531 | I18: 353.194 | J18: 528.38 | K18: 2.098 | L18: 0.931 | M18: 2907.932
A19: 13 | B19: 38.05 | C19: 1828.796 | D19: 61.027 | E19: 8.569 | F19: 21.764 | G19: 5.144 | H19: 108.651 | I19: 354.978 | J19: 517.901 | K19: 2.999 | L19: 1.819 | M19: 2911.648
A20: 14 | B20: 38.05 | C20: 1807.343 | D20: 73.063 | E20: 9.869 | F20: 24.412 | G20: 5.76 | H20: 115.304 | I20: 335.859 | J20: 527.736 | K20: 3.191 | L20: 1.812 | M20: 2904.349
A21: 15 | B21: 38.05 | C21: 2329.471 | D21: 101.286 | E21: 14.634 | F21: 38.165 | G21: 8.545 | H21: 150.676 | I21: 442.282 | J21: 749.877 | K21: 2.98 | L21: 1.492 | M21: 3839.408
A22: 16 | B22: 38.05 | C22: 1811.773 | D22: 63.884 | E22: 8.738 | F22: 21.623 | G22: 5.292 | H22: 113.956 | I22: 340.562 | J22: 508.901 | K22: 3.494 | L22: 1.755 | M22: 2879.978
A23: 17 | B23: 38.05 | C23: 1817.747 | D23: 62.205 | E23: 8.757 | F23: 20.858 | G23: 5.244 | H23: 102.796 | I23: 310.75 | J23: 644.847 | K23: 2.945 | L23: 1.914 | M23: 2978.063
A24: 18 | B24: 38.05 | C24: 1802.642 | D24: 72.179 | E24: 10.278 | F24: 24.497 | G24: 6.095 | H24: 114.567 | I24: 307.438 | J24: 848.42 | K24: 2.118 | L24: 1.594 | M24: 3189.828
A25: 19 | B25: 38.05 | C25: 1858.065 | D25: 70.302 | E25: 10.35 | F25: 24.119 | G25: 5.808 | H25: 112.692 | I25: 304.626 | J25: 861.975 | K25: 1.822 | L25: 0.835 | M25: 3250.594
A26: 20 | B26: 38.09 | C26: 1711.493 | D26: 65.977 | E26: 9.247 | F26: 22.554 | G26: 5.319 | H26: 105.543 | I26: 308.928 | J26: 804.693 | K26: 3.345 | L26: 1.657 | M26: 3038.756
A27: 21 | B27: 38.09 | C27: 1632.616 | D27: 60.781 | E27: 8.157 | F27: 20.922 | G27: 5.108 | H27: 89.288 | I27: 276.397 | J27: 850.875 | K27: 3.416 | L27: 1.981 | M27: 2949.541
A28: 22 | B28: 38.09 | C28: 1837.929 | D28: 48.359 | E28: 6.113 | F28: 16.394 | G28: 4.384 | H28: 52.094 | I28: 289.991 | J28: 812.586 | K28: 2.791 | L28: 1.695 | M28: 3072.336
A29: 23 | B29: 38.09 | C29: 2136.942 | D29: 51.77 | E29: 7.214 | F29: 18.798 | G29: 4.709 | H29: 69.424 | I29: 311.909 | J29: 871.437 | K29: 3.056 | L29: 1.913 | M29: 3477.172
A30: 24 | B30: 38.09 | C30: 2061.686 | D30: 51.741 | E30: 7.891 | F30: 19.509 | G30: 4.792 | H30: 71.464 | I30: 212.264 | J30: 877.172 | K30: 3.092 | L30: 1.788 | M30: 3311.399
A31: 25 | B31: 38.09 | C31: 2011.254 | D31: 55.761 | E31: 8.012 | F31: 19.337 | G31: 4.929 | H31: 81.303 | I31: 259.68 | J31: 814.509 | K31: 2.229 | L31: 1.311 | M31: 3258.325
A32: 26 | B32: 38.09 | C32: 2088.885 | D32: 64.015 | E32: 9.408 | F32: 22.678 | G32: 5.432 | H32: 94.817 | I32: 282.082 | J32: 842.465 | K32: 1.906 | L32: 0.827 | M32: 3412.515
A33: 27 | B33: 38.08 | C33: 2064.653 | D33: 57.864 | E33: 9.001 | F33: 22.688 | G33: 5.322 | H33: 86.244 | I33: 277.109 | J33: 807.156 | K33: 2.384 | L33: 1.829 | M33: 3334.25
A34: 28 | B34: 38.08 | C34: 2115.196 | D34: 45.05 | E34: 7.036 | F34: 18.031 | G34: 4.381 | H34: 61.816 | I34: 255.324 | J34: 552.232 | K34: 3.069 | L34: 1.523 | M34: 3063.658
A35: 29 | B35: 38.08 | C35: 2105.458 | D35: 38.424 | E35: 5.979 | F35: 16.012 | G35: 3.97 | H35: 57.959 | I35: 252.607 | J35: 542.471 | K35: 2.365 | L35: 2.104 | M35: 3027.349
A36: 30 | B36: 38.08 | C36: 2133.164 | D36: 46.664 | E36: 7.082 | F36: 18.125 | G36: 4.512 | H36: 86.463 | I36: 305.683 | J36: 524.093 | K36: 2.949 | L36: 2.23 | M36: 3130.965
A37: 31 | B37: 38.08 | C37: 1946.675 | D37: 51.862 | E37: 7.449 | F37: 21.714 | G37: 5.152 | H37: 70.216 | I37: 297.931 | J37: 509.22 | K37: 3.029 | L37: 1.747 | M37: 2914.995
A38: Загальний обсяг газу, м3 | C38: =SUM(C7:C37) -> 60227.889 | D38: 1845.354 | E38: 268.277 | F38: 675.539 | G38: 163.476 | H38: 3065.919 | I38: 9534.472 | J38: 22073.342 | K38: 87.179 | L38: 49.772 | M38: =SUM(M7:M37) -> 97991.219
A39: Енергія, МДж | C39: =SUMPRODUCT($B$7:$B$37,C7:C37) -> 2291817.965 | D39: 70218.54464 | E39: 10208.25687 | F39: 25705.1626 | G39: 6220.52752 | H39: 116655.521 | I39: 362804.5488 | J39: 839908.6408 | K39: 3317.48016 | L39: 1894.10302 | M39: =SUMPRODUCT(B7:B37,M7:M37) -> 3728750.751
A40: Теплота згоряння (середньозважене значення за місяць), МДж/м³ | C40: =C39/C38 -> 38.05243722 | D40: =D39/D38 -> 38.05153084 | E40: =E39/E38 -> 38.05118169 | F40: =F39/F38 -> 38.05133767 | G40: =G39/G38 -> 38.05162544 | H40: 38.04912036 | I40: 38.05187626 | J40: =J39/J38 -> 38.05081445 | K40: =K39/K38 -> 38.05366155 | L40: =L39/L38 -> 38.05559391 | M40: =M39/M38 -> 38.05188657
A41: Теплота згоряння (середньозважене значення за місяць), ккал/м³ | C41: =C40*238.8459 -> 9088.668615 | D41: =D40*238.8459 -> 9088.45213 | E41: =E40*238.8459 -> 9088.368737 | F41: =F40*238.8459 -> 9088.405993 | G41: =G40*238.8459 -> 9088.474724 | H41: 9087.876396 | I41: 9088.534633 | J41: =J40*238.8459 -> 9088.281024 | K41: 9088.96104 | L41: 9089.422577 | M41: 9088.537095
A42: Теплота згоряння (середньозважене значення за місяць), кВт*год./м³ | C42: =C40/3.6 -> 10.57012145 | D42: =D40/3.6 -> 10.56986968 | E42: 10.56977269 | F42: 10.56981602 | G42: 10.56989595 | H42: 10.5692001 | I42: 10.56996563 | J42: =J40/3.6 -> 10.56967068 | K42: 10.57046154 | L42: 10.57099831 | M42: 10.56996849
D45: 38.05151659 | E45: 38.0507076 | F45: 38.05035867 | G45: 38.05038578 | H45: 38.0507021 | I45: 38.04839657 | J45: 38.05096911 | K45: 38.05012526 | L45: 38.05271349 | M45: 38.05470609 | N45: 38.04791226
D46: 9088.448725 | E46: 9088.255503 | F46: 9088.172161 | G46: 9088.178636 | H46: 9088.25419 | I46: 9087.703523 | J46: 9088.317964 | K46: 9088.116412 | L46: 9088.7346 | M46: 9089.210525 | N46: 9087.587847
D47: 10.56986572 | E47: 10.569641 | F47: 10.56954407 | G47: 10.5695516 | H47: 10.56963947 | I47: 10.56899905 | J47: 10.56971364 | K47: 10.56947924 | L47: 10.57019819 | M47: 10.57075169 | N47: 10.56886452
D50: 38.05151659 | E50: 9088.448725 | F50: 10.56986572
D51: 38.0507076 | E51: 9088.255503 | F51: 10.569641
D52: 38.05035867 | E52: 9088.172161 | F52: 10.56954407
D53: 38.05038578 | E53: 9088.178636 | F53: 10.5695516
D54: 38.0507021 | E54: 9088.25419 | F54: 10.56963947
D55: 38.04839657 | E55: 9087.703523 | F55: 10.56899905
D56: 38.05096911 | E56: 9088.317964 | F56: 10.56971364
D57: 38.05012526 | E57: 9088.116412 | F57: 10.56947924
D58: 38.05271349 | E58: 9088.7346 | F58: 10.57019819
D59: 38.05470609 | E59: 9089.210525 | F59: 10.57075169
D60: 38.04791226 | E60: 9087.587847 | F60: 10.56886452

Sheet додаток
A2: Додаток до Паспорту фізико-хімічних показників природного газу №27
A4: Область | B4: ГРС, прямий споживач | C4: Cередньозважене значення вищої теплоти згоряння
C5: МДж/м³ | D5: ккал/м³ | E5: кВт*год./м³
A6: Київська область | B6: ГРС ТЕЦ-6 | C6: 38.05 | D6: 9089 | E6: 10.56986572
B7: ГРС Требухів | C7: 38.05 | D7: 9088 | E7: 10.569641
B8: ГРС Дударків | C8: 38.05 | D8: 9088 | E8: 10.56954407
B9: ГРС Плоске | C9: 38.05 | D9: 9088 | E9: 10.5695516
B10: ГРС Русанів | C10: 38.05 | D10: 9088 | E10: 10.56963947
B11: ГРС Бориспіль | C11: 38.05 | D11: 9088 | E11: 10.56899905
B12: ГРС - 4 (місто) | C12: 38.05 | D12: 9089 | E12: 10.56971364
B13: ГРС -4 (ТЕЦ) | C13: 38.05 | D13: 9088 | E13: 10.56947924
B14: АГНКС №3 м.Київ | C14: 38.05 | D14: 9089 | E14: 10.57019819
B15: АГНКС Бровари | C15: 38.06 | D15: 9089 | E15: 10.57075169
A16: Середньозважене значення вищої теплоти згоряння по маршруту № 27 | C16: 38.04791226 | D16: 9089 | E16: 10.56886452
A30: Головний інженер Боярського ЛВУМГ Табак С.М. 03.04.2017 р.
A31: Підрозділу підприємства, якому підпорядкована лабораторія | D31: прізвище | E31: підпис | F31: дата
A32: Завідувач вимірювальної хіміко-аналітичної лабораторії Клименко І.А. 03.04.2017 р.
A33: Лабораторія, де здійснювалось вимірювання газу | D33: прізвище | E33: підпис | F33: дата
A34: Начальник служби газовимірювань та метрології Прима Ю.І. 03.04.2017 р.
A35: Підрозділу, відповідального за облік газу за маршрутом | D35: прізвище | E35: підпис | F35: дата

Sheet variablesList (hidden)
A1: 3 | B1: x:\gaysin | C1: 10, 11, 24, 25, 127, 128, 132, 180, 207, 215 | D1: x:\
B2: x:\Illinci
B3: x:\Talne
